[Event "Early-Titled-Tuesday-Blitz-April-16-2024"]
[Site "Chess.com"]
[Date "2024.04.16"]
[Round "1"]
[White "viditchess"]
[Black "guillembaches"]
[Result "1-0"]
[WhiteElo "3132"]
[BlackElo "2537"]
[TimeControl "180+1"]
[EndTime "8:06:52 PDT"]
[Termination "viditchess won on time"]

1. d4 {[%clk 0:03:00.9]} 1... d5 {[%clk 0:02:59.2]} 2. Nf3 {[%clk 0:03:00.9]}
2... e6 {[%clk 0:02:58.9]} 3. Bf4 {[%clk 0:03:00]} 3... Bd6 {[%clk 0:02:58.4]}
4. e3 {[%clk 0:02:59.9]} 4... Nf6 {[%clk 0:02:57.4]} 5. Nbd2 {[%clk 0:02:59.7]}
5... Bxf4 {[%clk 0:02:57.5]} 6. exf4 {[%clk 0:02:59.8]} 6... O-O {[%clk
0:02:57.3]} 7. Bd3 {[%clk 0:02:59.4]} 7... b6 {[%clk 0:02:57.3]} 8. Qe2 {[%clk
0:02:59]} 8... c5 {[%clk 0:02:56.7]} 9. c3 {[%clk 0:02:59.1]} 9... a5 {[%clk
0:02:56.5]} 10. h4 {[%clk 0:02:57.7]} 10... Ba6 {[%clk 0:02:54.8]} 11. Bxa6
{[%clk 0:02:56.8]} 11... Nxa6 {[%clk 0:02:54.8]} 12. h5 {[%clk 0:02:57]} 12...
cxd4 {[%clk 0:02:49.3]} 13. Nxd4 {[%clk 0:02:55.7]} 13... Nc5 {[%clk 0:02:46]}
14. h6 {[%clk 0:02:55.5]} 14... g6 {[%clk 0:02:45.4]} 15. N2f3 {[%clk
0:02:52.4]} 15... Nce4 {[%clk 0:02:34.2]} 16. Ne5 {[%clk 0:02:51]} 16... Qc7
{[%clk 0:02:23.5]} 17. g3 {[%clk 0:02:47]} 17... Rfc8 {[%clk 0:02:04.4]} 18. Kf1
{[%clk 0:02:45.5]} 18... Nd7 {[%clk 0:02:01]} 19. Ng4 {[%clk 0:02:37.5]} 19...
Ndf6 {[%clk 0:01:55.4]} 20. Ne5 {[%clk 0:02:35.4]} 20... Nd7 {[%clk 0:01:55.3]}
21. Nef3 {[%clk 0:02:35.2]} 21... Qc4 {[%clk 0:01:42.6]} 22. Qxc4 {[%clk
0:02:32.7]} 22... Rxc4 {[%clk 0:01:42.1]} 23. Ke2 {[%clk 0:02:32.2]} 23... Kf8
{[%clk 0:01:29.7]} 24. Nd2 {[%clk 0:02:20.4]} 24... Nxd2 {[%clk 0:01:26.2]} 25.
Kxd2 {[%clk 0:02:21.3]} 25... Rac8 {[%clk 0:01:14.9]} 26. Rae1 {[%clk
0:02:15.1]} 26... b5 {[%clk 0:01:06.6]} 27. Nxb5 {[%clk 0:02:10]} 27... Rb8
{[%clk 0:01:04]} 28. b3 {[%clk 0:02:10]} 28... Rxb5 {[%clk 0:00:52.6]} 29. bxc4
{[%clk 0:02:09.6]} 29... Rb2+ {[%clk 0:00:52.9]} 30. Ke3 {[%clk 0:02:02.4]}
30... dxc4 {[%clk 0:00:49.6]} 31. Re2 {[%clk 0:02:01.3]} 31... Rb5 {[%clk
0:00:47.9]} 32. Kd4 {[%clk 0:01:17.7]} 32... Nb6 {[%clk 0:00:45.2]} 33. Re5
{[%clk 0:01:14.1]} 33... Rb2 {[%clk 0:00:43.9]} 34. Rxa5 {[%clk 0:01:13.8]}
34... Rxf2 {[%clk 0:00:42.2]} 35. a4 {[%clk 0:01:07]} 35... Rf3 {[%clk
0:00:38.6]} 36. Kc5 {[%clk 0:00:52.5]} 36... Nd5 {[%clk 0:00:36.8]} 37. Kd6
{[%clk 0:00:51.3]} 37... Nf6 {[%clk 0:00:28.4]} 38. Ra8+ {[%clk 0:00:47.4]}
38... Ne8+ {[%clk 0:00:28]} 39. Kc6 {[%clk 0:00:46.3]} 39... Rxc3 {[%clk
0:00:26.8]} 40. Rd1 {[%clk 0:00:44.3]} 1-0

[Event "Early-Titled-Tuesday-Blitz-April-16-2024"]
[Site "Chess.com"]
[Date "2024.04.16"]
[Round "1"]
[White "tomesao"]
[Black "Azerichess"]
[Result "1-0"]
[WhiteElo "2544"]
[BlackElo "3018"]
[TimeControl "180+1"]
[EndTime "8:06:53 PDT"]
[Termination "tomesao won by checkmate"]

1. Nf3 {[%clk 0:02:56]} 1... Nf6 {[%clk 0:02:59.2]} 2. c4 {[%clk 0:02:54]} 2...
b6 {[%clk 0:02:56.6]} 3. g3 {[%clk 0:02:53.3]} 3... Bb7 {[%clk 0:02:56.7]} 4.
Bg2 {[%clk 0:02:53.6]} 4... g6 {[%clk 0:02:55.9]} 5. b3 {[%clk 0:02:53.9]} 5...
Bg7 {[%clk 0:02:55.4]} 6. Bb2 {[%clk 0:02:54.3]} 6... O-O {[%clk 0:02:55.7]} 7.
O-O {[%clk 0:02:51.4]} 7... d6 {[%clk 0:02:47.3]} 8. d4 {[%clk 0:02:50.1]} 8...
Nbd7 {[%clk 0:02:47.1]} 9. Nc3 {[%clk 0:02:49]} 9... Ne4 {[%clk 0:02:46.4]} 10.
Qc2 {[%clk 0:02:46.9]} 10... Nxc3 {[%clk 0:02:35.3]} 11. Bxc3 {[%clk 0:02:46.4]}
11... e5 {[%clk 0:02:34.3]} 12. dxe5 {[%clk 0:02:44.8]} 12... dxe5 {[%clk
0:02:31.6]} 13. Rfd1 {[%clk 0:02:36.3]} 13... Qc8 {[%clk 0:02:18.1]} 14. Bh3
{[%clk 0:02:16.4]} 14... f5 {[%clk 0:02:16.4]} 15. Ng5 {[%clk 0:02:16.2]} 15...
Nc5 {[%clk 0:02:07.3]} 16. b4 {[%clk 0:02:11.9]} 16... Ne6 {[%clk 0:01:57.4]}
17. Nf3 {[%clk 0:02:03.2]} 17... Qe8 {[%clk 0:01:38.2]} 18. Bg2 {[%clk
0:01:48.6]} 18... e4 {[%clk 0:01:30.4]} 19. Nd4 {[%clk 0:01:41.6]} 19... Rd8
{[%clk 0:01:23]} 20. Nxe6 {[%clk 0:01:39.8]} 20... Qxe6 {[%clk 0:01:23.9]} 21.
Bxg7 {[%clk 0:01:39.3]} 21... Kxg7 {[%clk 0:01:24.8]} 22. Qc3+ {[%clk
0:01:35.6]} 22... Qf6 {[%clk 0:01:24.7]} 23. Qc2 {[%clk 0:01:23.1]} 23... Qe5
{[%clk 0:01:11.6]} 24. e3 {[%clk 0:01:20.6]} 24... Bc8 {[%clk 0:01:01.3]} 25.
Bf1 {[%clk 0:01:18.6]} 25... Be6 {[%clk 0:01:01]} 26. c5 {[%clk 0:01:15.9]}
26... bxc5 {[%clk 0:00:34.7]} 27. bxc5 {[%clk 0:01:11.5]} 27... a5 {[%clk
0:00:33.4]} 28. Rac1 {[%clk 0:01:02.7]} 28... h5 {[%clk 0:00:29]} 29. h4 {[%clk
0:00:59.1]} 29... Kh6 {[%clk 0:00:29]} 30. Bc4 {[%clk 0:00:40.1]} 30... Rxd1+
{[%clk 0:00:24.3]} 31. Qxd1 {[%clk 0:00:32.3]} 31... Bxc4 {[%clk 0:00:20.5]} 32.
Rxc4 {[%clk 0:00:33.2]} 32... Rb8 {[%clk 0:00:20.8]} 33. Kg2 {[%clk 0:00:25.9]}
33... Qe6 {[%clk 0:00:17]} 34. Qd4 {[%clk 0:00:21.9]} 34... Rb1 {[%clk
0:00:13.5]} 35. Qh8# {[%clk 0:00:19.4]} 1-0

[Event "Early-Titled-Tuesday-Blitz-April-16-2024"]
[Site "Chess.com"]
[Date "2024.04.16"]
[Round "1"]
[White "Smiechu"]
[Black "VD_coach"]
[Result "1-0"]
[WhiteElo "2376"]
[BlackElo "2643"]
[TimeControl "180+1"]
[EndTime "8:06:54 PDT"]
[Termination "Smiechu won by resignation"]

1. e4 {[%clk 0:03:00.9]} 1... c5 {[%clk 0:02:59.2]} 2. Nf3 {[%clk 0:03:00.5]}
2... d6 {[%clk 0:02:59.4]} 3. d4 {[%clk 0:03:00.6]} 3... cxd4 {[%clk 0:02:59.7]}
4. Nxd4 {[%clk 0:03:01.5]} 4... Nf6 {[%clk 0:03:00]} 5. Nc3 {[%clk 0:03:02]}
5... g6 {[%clk 0:03:00.2]} 6. Be3 {[%clk 0:03:01.9]} 6... Bg7 {[%clk 0:02:57.1]}
7. f3 {[%clk 0:03:02]} 7... O-O {[%clk 0:02:48.4]} 8. Qd2 {[%clk 0:03:01.9]}
8... Nc6 {[%clk 0:02:48.6]} 9. Bc4 {[%clk 0:03:01.9]} 9... Bd7 {[%clk
0:02:48.2]} 10. h4 {[%clk 0:03:02.1]} 10... Rc8 {[%clk 0:02:48.3]} 11. Bb3
{[%clk 0:03:01.6]} 11... h5 {[%clk 0:02:36.1]} 12. O-O-O {[%clk 0:03:00.7]}
12... Ne5 {[%clk 0:02:35.8]} 13. Bg5 {[%clk 0:03:00.6]} 13... Rc5 {[%clk
0:02:33.8]} 14. Kb1 {[%clk 0:03:00.7]} 14... Qa5 {[%clk 0:02:29.6]} 15. Bxf6
{[%clk 0:02:49.5]} 15... Bxf6 {[%clk 0:02:26]} 16. Nd5 {[%clk 0:02:49.5]} 16...
Rxd5 {[%clk 0:02:25.5]} 17. exd5 {[%clk 0:02:45.1]} 17... Qb6 {[%clk 0:02:07.1]}
18. g4 {[%clk 0:02:42.7]} 18... hxg4 {[%clk 0:02:07]} 19. h5 {[%clk 0:02:42.9]}
19... g5 {[%clk 0:02:07.2]} 20. f4 {[%clk 0:02:38]} 20... gxf4 {[%clk 0:01:59]}
21. Qxf4 {[%clk 0:02:37.7]} 21... a5 {[%clk 0:01:51.3]} 22. a4 {[%clk 0:02:16]}
22... Rc8 {[%clk 0:01:25.3]} 23. c3 {[%clk 0:02:06.5]} 23... Qc5 {[%clk
0:01:11.5]} 24. Rhg1 {[%clk 0:01:57.3]} 24... b5 {[%clk 0:01:11]} 25. Nxb5
{[%clk 0:01:46.1]} 25... Bxb5 {[%clk 0:01:00.4]} 26. axb5 {[%clk 0:01:45.6]}
26... a4 {[%clk 0:00:49]} 27. Qxa4 {[%clk 0:01:27.2]} 27... Kh8 {[%clk
0:00:26.9]} 28. Bc2 {[%clk 0:01:16.4]} 28... Rg8 {[%clk 0:00:26]} 29. Qe4 {[%clk
0:01:13.8]} 29... Kg7 {[%clk 0:00:25.2]} 30. h6+ {[%clk 0:01:09.6]} 30... Kf8
{[%clk 0:00:24.3]} 31. h7 {[%clk 0:01:10]} 31... Rh8 {[%clk 0:00:22.6]} 32. Rxg4
{[%clk 0:00:57.5]} 32... Nxg4 {[%clk 0:00:20.5]} 33. Qxg4 {[%clk 0:00:57.6]}
33... Qe3 {[%clk 0:00:20.1]} 34. Rg1 {[%clk 0:00:51.8]} 34... e5 {[%clk
0:00:20.3]} 35. Qc8+ {[%clk 0:00:31.1]} 35... Ke7 {[%clk 0:00:18]} 36. Qc7+
{[%clk 0:00:31.2]} 36... Ke8 {[%clk 0:00:16.4]} 37. Rg8+ {[%clk 0:00:29.5]} 1-0

[Event "Early-Titled-Tuesday-Blitz-April-16-2024"]
[Site "Chess.com"]
[Date "2024.04.16"]
[Round "1"]
[White "David_Arutinian"]
[Black "sorch29"]
[Result "1-0"]
[WhiteElo "2825"]
[BlackElo "2469"]
[TimeControl "180+1"]
[EndTime "8:06:56 PDT"]
[Termination "David_Arutinian won by resignation"]

1. Nf3 {[%clk 0:03:00.7]} 1... Nf6 {[%clk 0:02:58.5]} 2. c4 {[%clk 0:03:01]}
2... b6 {[%clk 0:02:58.3]} 3. g3 {[%clk 0:02:59.6]} 3... Bb7 {[%clk 0:02:58.8]}
4. Bg2 {[%clk 0:03:00.3]} 4... g6 {[%clk 0:02:59.1]} 5. O-O {[%clk 0:03:00.7]}
5... Bg7 {[%clk 0:02:59.8]} 6. d4 {[%clk 0:03:01.4]} 6... O-O {[%clk 0:03:00]}
7. Nc3 {[%clk 0:03:02]} 7... Ne4 {[%clk 0:03:00.7]} 8. Bd2 {[%clk 0:03:00.9]}
8... e6 {[%clk 0:02:56.8]} 9. Rc1 {[%clk 0:02:59.1]} 9... d6 {[%clk 0:02:54.6]}
10. Qc2 {[%clk 0:02:59.1]} 10... Nxd2 {[%clk 0:02:50.2]} 11. Qxd2 {[%clk
0:02:58.8]} 11... Nd7 {[%clk 0:02:50.9]} 12. e4 {[%clk 0:02:58.9]} 12... Qe7
{[%clk 0:02:48.8]} 13. Rfe1 {[%clk 0:02:58.6]} 13... a6 {[%clk 0:02:47.2]} 14.
Rcd1 {[%clk 0:02:57.6]} 14... Rad8 {[%clk 0:02:45.8]} 15. h4 {[%clk 0:02:56.4]}
15... h6 {[%clk 0:02:40.8]} 16. b3 {[%clk 0:02:51.9]} 16... Rfe8 {[%clk
0:02:36.6]} 17. Kh2 {[%clk 0:02:52.1]} 17... c5 {[%clk 0:02:36.4]} 18. d5 {[%clk
0:02:51.6]} 18... Bxc3 {[%clk 0:02:23.5]} 19. Qxc3 {[%clk 0:02:51.3]} 19... e5
{[%clk 0:02:23.8]} 20. h5 {[%clk 0:02:44.1]} 20... g5 {[%clk 0:02:09.8]} 21. Bh3
{[%clk 0:02:23.5]} 21... Nf6 {[%clk 0:02:08.6]} 22. Bf5 {[%clk 0:02:23.7]} 22...
Nxh5 {[%clk 0:02:01.9]} 23. Kg2 {[%clk 0:02:23.9]} 23... Nf6 {[%clk 0:01:28.9]}
24. Rh1 {[%clk 0:02:21.2]} 24... Kg7 {[%clk 0:01:29.4]} 25. Qe3 {[%clk
0:02:19.8]} 25... Ng8 {[%clk 0:01:21.7]} 26. Rh2 {[%clk 0:02:15.1]} 26... f6
{[%clk 0:01:18.5]} 27. Rdh1 {[%clk 0:02:08.9]} 27... Bc8 {[%clk 0:01:18.6]} 28.
g4 {[%clk 0:02:09]} 28... Bxf5 {[%clk 0:01:17.8]} 29. exf5 {[%clk 0:02:09.9]}
29... e4 {[%clk 0:01:11.8]} 30. Nd2 {[%clk 0:02:10.2]} 30... Qe5 {[%clk
0:01:11.7]} 31. Re1 {[%clk 0:02:07.4]} 31... Qb2 {[%clk 0:01:05.7]} 32. Nxe4
{[%clk 0:02:02.3]} 32... Qxa2 {[%clk 0:00:59]} 33. Re2 {[%clk 0:02:02.6]} 33...
Qa3 {[%clk 0:00:49.2]} 34. f4 {[%clk 0:01:55.2]} 34... gxf4 {[%clk 0:00:38.7]}
35. Qf3 {[%clk 0:01:44.2]} 35... Re5 {[%clk 0:00:29.9]} 36. Rh3 {[%clk 0:01:43]}
36... Rde8 {[%clk 0:00:29.3]} 37. Qxf4 {[%clk 0:01:43.6]} 37... Qa1 {[%clk
0:00:19.6]} 38. Rhe3 {[%clk 0:01:43.1]} 38... Qd4 {[%clk 0:00:18.9]} 39. Kf3
{[%clk 0:01:37.9]} 39... R8e7 {[%clk 0:00:18.8]} 40. Kg3 {[%clk 0:01:31.9]}
40... b5 {[%clk 0:00:17.7]} 41. Kf3 {[%clk 0:01:24.8]} 41... bxc4 {[%clk
0:00:17.4]} 42. bxc4 {[%clk 0:01:25.2]} 42... a5 {[%clk 0:00:17.8]} 43. Nc3
{[%clk 0:00:49.7]} 43... Rxe3+ {[%clk 0:00:15.9]} 44. Rxe3 {[%clk 0:00:50.1]}
44... Rxe3+ {[%clk 0:00:13.5]} 45. Qxe3 {[%clk 0:00:50.5]} 45... Qf4+ {[%clk
0:00:14.2]} 46. Qxf4 {[%clk 0:00:50.4]} 1-0

[Event "Early-Titled-Tuesday-Blitz-April-16-2024"]
[Site "Chess.com"]
[Date "2024.04.16"]
[Round "1"]
[White "BashirliSaadat"]
[Black "Shuvalov"]
[Result "1/2-1/2"]
[WhiteElo "2344"]
[BlackElo "2631"]
[TimeControl "180+1"]
[EndTime "8:06:57 PDT"]
[Termination "Game drawn by repetition"]

1. d4 {[%clk 0:02:59.6]} 1... Nf6 {[%clk 0:02:57.2]} 2. e3 {[%clk 0:02:59.5]}
2... c5 {[%clk 0:02:55.8]} 3. Bd3 {[%clk 0:02:56.7]} 3... d5 {[%clk 0:02:54.5]}
4. c3 {[%clk 0:02:55.8]} 4... Bg4 {[%clk 0:02:46.7]} 5. f3 {[%clk 0:02:47.4]}
5... Bh5 {[%clk 0:02:44.1]} 6. Ne2 {[%clk 0:02:47]} 6... Nc6 {[%clk 0:02:36.9]}
7. O-O {[%clk 0:02:45.8]} 7... e5 {[%clk 0:02:32.6]} 8. Ng3 {[%clk 0:02:40.9]}
8... Bg6 {[%clk 0:02:31.1]} 9. dxe5 {[%clk 0:02:34.3]} 9... Nxe5 {[%clk
0:02:30.2]} 10. Bb5+ {[%clk 0:02:32.2]} 10... Nc6 {[%clk 0:02:26.6]} 11. Qa4
{[%clk 0:02:25.1]} 11... Qc7 {[%clk 0:02:19.3]} 12. Rd1 {[%clk 0:02:19.6]} 12...
Bd6 {[%clk 0:02:16.9]} 13. Nf1 {[%clk 0:02:15.1]} 13... O-O {[%clk 0:02:16]} 14.
Bd3 {[%clk 0:02:01.7]} 14... Ne5 {[%clk 0:02:08.1]} 15. Bxg6 {[%clk 0:01:58.4]}
15... hxg6 {[%clk 0:01:58.9]} 16. Nbd2 {[%clk 0:01:51.1]} 16... Rfe8 {[%clk
0:01:56.2]} 17. f4 {[%clk 0:01:35.2]} 17... Neg4 {[%clk 0:01:51.6]} 18. Nf3
{[%clk 0:01:29.7]} 18... Nh6 {[%clk 0:01:31.3]} 19. Qc2 {[%clk 0:01:25.9]} 19...
Nf5 {[%clk 0:01:30]} 20. Qd2 {[%clk 0:01:18.1]} 20... Rad8 {[%clk 0:01:29.1]}
21. h3 {[%clk 0:01:15.9]} 21... Ne4 {[%clk 0:01:20.7]} 22. Qe1 {[%clk
0:01:15.1]} 22... Nf6 {[%clk 0:00:43.6]} 23. g4 {[%clk 0:01:08]} 23... Nxe3
{[%clk 0:00:34.2]} 24. Bxe3 {[%clk 0:01:03.7]} 24... Bxf4 {[%clk 0:00:32.2]} 25.
Qf2 {[%clk 0:01:03.9]} 25... Ne4 {[%clk 0:00:28]} 26. Qg2 {[%clk 0:00:59.5]}
26... Bxe3+ {[%clk 0:00:26.6]} 27. Nxe3 {[%clk 0:00:59.2]} 27... Nxc3 {[%clk
0:00:26.8]} 28. bxc3 {[%clk 0:00:53.4]} 28... Rxe3 {[%clk 0:00:27.3]} 29. Rac1
{[%clk 0:00:50.1]} 29... Qf4 {[%clk 0:00:27.1]} 30. Rf1 {[%clk 0:00:45.1]} 30...
Rde8 {[%clk 0:00:27.3]} 31. Nd2 {[%clk 0:00:39.6]} 31... Qe5 {[%clk 0:00:22]}
32. Qf2 {[%clk 0:00:38.3]} 32... Rg3+ {[%clk 0:00:19.5]} 33. Kh1 {[%clk
0:00:30.8]} 33... Rxh3+ {[%clk 0:00:19.7]} 34. Kg1 {[%clk 0:00:31.4]} 34... Rg3+
{[%clk 0:00:20.1]} 35. Kh1 {[%clk 0:00:31.4]} 35... Re7 {[%clk 0:00:20.5]} 36.
Rce1 {[%clk 0:00:28.8]} 36... Rh3+ {[%clk 0:00:20.3]} 37. Kg1 {[%clk 0:00:28.3]}
37... Rg3+ {[%clk 0:00:19.1]} 38. Kh1 {[%clk 0:00:27.1]} 38... Rh3+ {[%clk
0:00:18.6]} 39. Kg1 {[%clk 0:00:26.5]} 39... Rg3+ {[%clk 0:00:19.1]} 40. Kh1
{[%clk 0:00:26.9]} 1/2-1/2

[Event "Early-Titled-Tuesday-Blitz-April-16-2024"]
[Site "Chess.com"]
[Date "2024.04.16"]
[Round "1"]
[White "Abund"]
[Black "NigelDwarf"]
[Result "1-0"]
[WhiteElo "2815"]
[BlackElo "2455"]
[TimeControl "180+1"]
[EndTime "8:07:01 PDT"]
[Termination "Abund won by resignation"]

1. e4 {[%clk 0:03:00.9]} 1... c5 {[%clk 0:02:59.3]} 2. Nf3 {[%clk 0:03:01]} 2...
d6 {[%clk 0:02:59.3]} 3. d4 {[%clk 0:03:01.6]} 3... Nf6 {[%clk 0:02:59.7]} 4.
Nc3 {[%clk 0:03:00]} 4... cxd4 {[%clk 0:02:59.6]} 5. Nxd4 {[%clk 0:03:00.9]}
5... a6 {[%clk 0:02:59.6]} 6. Bd3 {[%clk 0:02:58.6]} 6... e5 {[%clk 0:02:56.6]}
7. Nde2 {[%clk 0:02:57.5]} 7... Be7 {[%clk 0:02:54.6]} 8. Ng3 {[%clk 0:02:55.3]}
8... b5 {[%clk 0:02:51.8]} 9. O-O {[%clk 0:02:51.9]} 9... O-O {[%clk 0:02:50.7]}
10. a4 {[%clk 0:02:47]} 10... b4 {[%clk 0:02:50]} 11. Nd5 {[%clk 0:02:47.4]}
11... Nxd5 {[%clk 0:02:49.2]} 12. exd5 {[%clk 0:02:48.3]} 12... f5 {[%clk
0:02:49.2]} 13. a5 {[%clk 0:02:42.4]} 13... e4 {[%clk 0:02:30.4]} 14. Bc4 {[%clk
0:02:39.8]} 14... Nd7 {[%clk 0:02:27]} 15. Bd2 {[%clk 0:02:36]} 15... Ne5 {[%clk
0:02:10.1]} 16. Bb3 {[%clk 0:02:35.6]} 16... f4 {[%clk 0:01:33.5]} 17. Nxe4
{[%clk 0:02:31.4]} 17... f3 {[%clk 0:01:34.1]} 18. Re1 {[%clk 0:01:56.9]} 18...
Bg4 {[%clk 0:01:20]} 19. g3 {[%clk 0:01:54.6]} 19... Qe8 {[%clk 0:00:50.7]} 20.
Bxb4 {[%clk 0:01:32.5]} 20... Qh5 {[%clk 0:00:33.4]} 21. Re3 {[%clk 0:01:32.5]}
21... Bh3 {[%clk 0:00:20.9]} 22. Bxd6 {[%clk 0:01:24.8]} 22... Bxd6 {[%clk
0:00:17.7]} 23. Nxd6 {[%clk 0:01:25.7]} 23... Ng4 {[%clk 0:00:18.1]} 24. Rxf3
{[%clk 0:01:07.7]} 24... Bg2 {[%clk 0:00:16.1]} 25. Rxf8+ {[%clk 0:01:02.3]}
25... Rxf8 {[%clk 0:00:15.1]} 26. h4 {[%clk 0:01:00.8]} 26... Rxf2 {[%clk
0:00:11.6]} 27. Qe1 {[%clk 0:00:56.4]} 27... h6 {[%clk 0:00:05.4]} 28. Ne4
{[%clk 0:00:39.9]} 28... Bxe4 {[%clk 0:00:03.5]} 29. Qxe4 {[%clk 0:00:40.6]}
29... Rd2 {[%clk 0:00:02.3]} 30. Re1 {[%clk 0:00:31.8]} 30... Nf2 {[%clk
0:00:01.7]} 31. Qe8+ {[%clk 0:00:20]} 1-0

[Event "Early-Titled-Tuesday-Blitz-April-16-2024"]
[Site "Chess.com"]
[Date "2024.04.16"]
[Round "1"]
[White "Hananmo"]
[Black "PLAYER_2006_M"]
[Result "0-1"]
[WhiteElo "2520"]
[BlackElo "2979"]
[TimeControl "180+1"]
[EndTime "8:07:02 PDT"]
[Termination "PLAYER_2006_M won by resignation"]

1. Nf3 {[%clk 0:03:00]} 1... Nf6 {[%clk 0:02:57.6]} 2. c4 {[%clk 0:02:59.7]}
2... e6 {[%clk 0:02:57.3]} 3. g3 {[%clk 0:02:59.5]} 3... b6 {[%clk 0:02:52.6]}
4. Bg2 {[%clk 0:02:59.5]} 4... Bb7 {[%clk 0:02:53.3]} 5. O-O {[%clk 0:03:00]}
5... g6 {[%clk 0:02:54]} 6. d4 {[%clk 0:03:00.2]} 6... Bg7 {[%clk 0:02:53.8]} 7.
Nc3 {[%clk 0:03:00.6]} 7... Ne4 {[%clk 0:02:54.2]} 8. Qd3 {[%clk 0:02:43.5]}
8... Nxc3 {[%clk 0:02:51.3]} 9. bxc3 {[%clk 0:02:43.6]} 9... O-O {[%clk
0:02:50.5]} 10. a4 {[%clk 0:02:38.9]} 10... Nc6 {[%clk 0:02:47]} 11. Ba3 {[%clk
0:02:32.5]} 11... d6 {[%clk 0:02:45.9]} 12. Nd2 {[%clk 0:02:27.2]} 12... Qc8
{[%clk 0:02:43.5]} 13. h4 {[%clk 0:02:16.7]} 13... Na5 {[%clk 0:02:39.6]} 14. h5
{[%clk 0:02:11.7]} 14... c5 {[%clk 0:02:31.6]} 15. hxg6 {[%clk 0:01:45.4]} 15...
hxg6 {[%clk 0:02:27.7]} 16. Rac1 {[%clk 0:01:44.4]} 16... f5 {[%clk 0:02:24.3]}
17. e3 {[%clk 0:01:28.6]} 17... e5 {[%clk 0:02:11]} 18. dxc5 {[%clk 0:01:16.8]}
18... dxc5 {[%clk 0:02:08.9]} 19. Bd5+ {[%clk 0:01:17]} 19... Bxd5 {[%clk
0:01:59.4]} 20. Qxd5+ {[%clk 0:01:17.9]} 20... Rf7 {[%clk 0:01:47.4]} 21. Nf3
{[%clk 0:01:15.6]} 21... Qb7 {[%clk 0:01:19.9]} 22. Rcd1 {[%clk 0:01:01.7]}
22... Qxd5 {[%clk 0:01:13.7]} 23. cxd5 {[%clk 0:00:59.8]} 23... e4 {[%clk
0:01:01.5]} 24. Ng5 {[%clk 0:00:54.2]} 24... Rd7 {[%clk 0:01:00.4]} 25. g4
{[%clk 0:00:38.5]} 25... Nc4 {[%clk 0:00:51.3]} 26. Bc1 {[%clk 0:00:34.1]} 26...
Bxc3 {[%clk 0:00:50.3]} 27. gxf5 {[%clk 0:00:30.1]} 27... gxf5 {[%clk
0:00:51.2]} 28. f3 {[%clk 0:00:29.3]} 28... Rg7 {[%clk 0:00:48.5]} 29. f4 {[%clk
0:00:28.6]} 29... Bf6 {[%clk 0:00:49.1]} 30. Kf2 {[%clk 0:00:23.6]} 30... Bxg5
{[%clk 0:00:46.5]} 31. fxg5 {[%clk 0:00:24.5]} 31... Rxg5 {[%clk 0:00:47.3]} 32.
d6 {[%clk 0:00:20]} 32... Rd8 {[%clk 0:00:47]} 33. d7 {[%clk 0:00:19.7]} 33...
Kf7 {[%clk 0:00:47.3]} 34. Ke2 {[%clk 0:00:19.8]} 34... Ke6 {[%clk 0:00:45.5]}
35. Rh1 {[%clk 0:00:19.9]} 35... Ne5 {[%clk 0:00:42.1]} 36. Rh6+ {[%clk
0:00:18.2]} 36... Rg6 {[%clk 0:00:42.3]} 37. Rh7 {[%clk 0:00:16]} 37... Rxd7
{[%clk 0:00:38.2]} 38. Rdxd7 {[%clk 0:00:15.1]} 38... Nxd7 {[%clk 0:00:39.1]}
39. Kf2 {[%clk 0:00:14.6]} 39... Ne5 {[%clk 0:00:38.8]} 0-1

[Event "Early-Titled-Tuesday-Blitz-April-16-2024"]
[Site "Chess.com"]
[Date "2024.04.16"]
[Round "1"]
[White "Bilan_Danila"]
[Black "AnishOnYoutube"]
[Result "0-1"]
[WhiteElo "2530"]
[BlackElo "3051"]
[TimeControl "180+1"]
[EndTime "8:07:03 PDT"]
[Termination "AnishOnYoutube won on time"]

1. d4 {[%clk 0:02:58.2]} 1... Nf6 {[%clk 0:03:00]} 2. Nf3 {[%clk 0:02:57.9]}
2... g6 {[%clk 0:02:59.9]} 3. Bg5 {[%clk 0:02:56.8]} 3... Bg7 {[%clk 0:03:00]}
4. c3 {[%clk 0:02:57.1]} 4... h6 {[%clk 0:03:00.2]} 5. Bh4 {[%clk 0:02:56.6]}
5... O-O {[%clk 0:03:00.5]} 6. Nbd2 {[%clk 0:02:56.1]} 6... d6 {[%clk
0:03:00.2]} 7. e4 {[%clk 0:02:55.7]} 7... c5 {[%clk 0:02:58.5]} 8. dxc5 {[%clk
0:02:55.3]} 8... dxc5 {[%clk 0:02:58.9]} 9. Bc4 {[%clk 0:02:55.6]} 9... Nc6
{[%clk 0:02:57.8]} 10. O-O {[%clk 0:02:54.7]} 10... Nh5 {[%clk 0:02:55.7]} 11.
Re1 {[%clk 0:02:48.4]} 11... Qc7 {[%clk 0:02:54]} 12. Qc2 {[%clk 0:02:40.5]}
12... Rd8 {[%clk 0:02:45.5]} 13. Rad1 {[%clk 0:02:27.6]} 13... Bg4 {[%clk
0:02:36.1]} 14. Bg3 {[%clk 0:02:07.7]} 14... Nxg3 {[%clk 0:02:34.2]} 15. hxg3
{[%clk 0:02:08.6]} 15... a6 {[%clk 0:02:29.6]} 16. a4 {[%clk 0:01:58.5]} 16...
Rab8 {[%clk 0:02:28.7]} 17. Nf1 {[%clk 0:01:33.2]} 17... Rxd1 {[%clk 0:02:22.7]}
18. Rxd1 {[%clk 0:01:30]} 18... b5 {[%clk 0:02:23.3]} 19. axb5 {[%clk
0:01:20.7]} 19... axb5 {[%clk 0:02:24.2]} 20. Be2 {[%clk 0:01:19.4]} 20... c4
{[%clk 0:02:17.9]} 21. Ne3 {[%clk 0:01:14.5]} 21... Bd7 {[%clk 0:02:02]} 22. Nd5
{[%clk 0:00:53.5]} 22... Qb7 {[%clk 0:02:01.3]} 23. Nd4 {[%clk 0:00:28.2]} 23...
e6 {[%clk 0:01:33.1]} 24. Ne3 {[%clk 0:00:12.2]} 24... Nxd4 {[%clk 0:01:23.2]}
25. cxd4 {[%clk 0:00:12.1]} 25... Bc6 {[%clk 0:01:16.3]} 26. d5 {[%clk
0:00:10.7]} 26... exd5 {[%clk 0:01:14.2]} 27. Nxd5 {[%clk 0:00:11.6]} 27... Re8
{[%clk 0:01:06.3]} 28. Bf3 {[%clk 0:00:11.5]} 28... Be5 {[%clk 0:01:00.2]} 29.
b3 {[%clk 0:00:11.5]} 29... cxb3 {[%clk 0:00:54.4]} 30. Qxb3 {[%clk 0:00:11.6]}
30... Kg7 {[%clk 0:00:55.1]} 31. Rb1 {[%clk 0:00:06.2]} 31... h5 {[%clk
0:00:53.2]} 32. Rc1 {[%clk 0:00:05]} 32... Bd7 {[%clk 0:00:50.4]} 33. Rb1 {[%clk
0:00:05.1]} 33... Rc8 {[%clk 0:00:49.4]} 34. Rd1 {[%clk 0:00:05]} 34... Rc4
{[%clk 0:00:46.6]} 35. Qe3 {[%clk 0:00:04.9]} 35... Qc6 {[%clk 0:00:43.2]} 36.
Qg5 {[%clk 0:00:05]} 36... f6 {[%clk 0:00:41.9]} 37. Qe3 {[%clk 0:00:04.6]}
37... Be6 {[%clk 0:00:38.3]} 38. Qa7+ {[%clk 0:00:04.6]} 38... Bf7 {[%clk
0:00:38.3]} 39. Ra1 {[%clk 0:00:03.4]} 39... Bxa1 {[%clk 0:00:37.2]} 0-1